bitfinex-derivatives/quotes_ETHF0:USTF0_20240822
["timestamp","ask_amount","ask_price","bid_price","bid_amount"]
[1724321825209,0.7458173,2628.2,2628.1,1.098]
[1724321825506,0.3654273,2628.2,2628.1,1.098]
[1724321825901,0.7458173,2628.2,2628.1,1.098]
[1724321826207,0.3654273,2628.2,2628.1,1.098]
[1724321827101,2.35747089,2628.2,2628.1,1.098]
[1724321827407,0.3654273,2628.2,2628.1,1.4784]
[1724321827800,0.3654273,2628.2,2628.1,1.098]
[1724321827996,0.3654273,2628.2,2628.1,1.4784]
[1724321828203,0.3654273,2628.2,2628.1,1.098]
[1724321828402,2.73786089,2628.2,2628.1,1.098]
[1724321828597,6.54266089,2628.2,2628.1,1.098]
[1724321829703,5.5015973,2628.2,2628.1,1.098]
[1724321829903,0.3804,2628.1,2628.0,1.098]
[1724321830112,2.37269731,2628.1,2628.0,1.098]
[1724321830305,0.38045,2627.8,2627.7,0.99593656]
[1724321830510,5.58053373,2627.8,2627.7,1.098]
[1724321830806,7.77446332,2627.8,2627.7,1.098]
[1724321831011,11.35832316,2627.8,2627.7,1.098]
[1724321831405,8.48765,2627.8,2627.7,1.098]
[1724321833404,8.1072,2627.8,2627.7,1.098]
[1724321834407,8.1072,2627.8,2627.7,1.47846]
[1724321834610,10.09897304,2627.8,2627.7,1.098]
[1724321834917,10.09897304,2627.8,2627.7,1.47846]
[1724321835808,10.09897304,2627.8,2627.7,1.098]
[1724321836012,10.09897304,2627.8,2627.7,1.47846]
[1724321837110,6.89117304,2627.8,2627.7,1.47846]
[1724321837507,4.8994,2627.8,2627.7,1.47846]
[1724321837710,6.89117304,2627.8,2627.7,1.47846]
[1724321838016,6.89117304,2627.8,2627.7,1.098]
[1724321838418,3.08557304,2627.8,2627.7,1.098]
[1724321838716,6.89117304,2627.8,2627.7,1.098]
[1724321839112,6.89117304,2627.8,2627.7,1.47846]
[1724321839813,4.8994,2627.8,2627.7,1.47846]
[1724321840016,5.19957304,2627.9,2627.8,0.38045]
[1724321840211,5.19957304,2627.9,2627.8,1.84415]
[1724321841114,5.19957304,2627.9,2627.8,1.4637]
[1724321841911,5.58000304,2627.9,2627.8,1.098]
[1724321842112,0.38045,2627.8,2627.7,1.098]
[1724321842314,0.7287,2627.8,2627.7,1.098]
[1724321842517,4.5343,2627.8,2627.7,1.098]
[1724321843213,4.5343,2627.8,2627.7,1.47846]
[1724321843517,1.86003786,2627.8,2627.7,1.47846]
[1724321844310,1.49343786,2627.8,2627.7,1.47846]
[1724321844909,5.1990672,2627.9,2627.8,0.38045]
[1724321845109,5.5794972,2627.9,2627.8,1.098]
[1724321845408,9.3850972,2627.9,2627.8,1.098]
[1724321846818,14.0046672,2627.9,2627.5,0.00478902]
[1724321847004,1.49351709,2627.7,2627.6,0.38047]
[1724321847516,5.66641709,2627.7,2627.6,0.38047]
[1724321848521,5.66641709,2627.7,2627.5,0.76256902]
[1724321848710,1.86081709,2627.7,2627.6,1.098]
[1724321849112,5.66641709,2627.7,2627.6,1.098]
[1724321850625,4.5573,2627.7,2627.6,1.098]
[1724321850820,6.05004083,2627.7,2627.6,1.098]
[1724321851020,6.43050083,2627.7,2627.6,1.098]
[1724321851521,6.05004083,2627.7,2627.6,1.098]
[1724321852123,9.25784083,2627.7,2627.6,1.098]
[1724321854121,9.25784083,2627.7,2627.6,1.47847]
[1724321854323,4.70054083,2627.7,2627.6,1.83567]
[1724321854518,3.2078,2627.7,2627.6,1.83567]
[1724321855320,3.2078,2627.7,2627.6,5.64127]
[1724321857424,3.2078,2627.7,2627.6,6.09631502]
[1724321858928,3.2078,2627.7,2627.6,1.83567]
[1724321860122,4.70054083,2627.7,2627.6,1.4552]
[1724321860323,5.08444083,2627.7,2627.6,1.098]
[1724321860520,8.89004083,2627.7,2627.6,1.098]
[1724321861330,9.27050083,2627.7,2627.6,1.098]
[1724321861723,9.27021234,2627.7,2627.6,1.098]
[1724321862026,7.77776,2627.7,2627.6,1.098]
[1724321862220,0.38047,2627.6,2627.5,1.10278902]
[1724321862421,2.37033524,2627.6,2627.5,0.00478902]
[1724321862725,6.17593524,2627.6,2627.5,0.00478902]
[1724321863119,4.18607,2627.6,2627.5,0.00478902]
[1724321863319,6.17565578,2627.6,2627.5,0.00478902]
[1724321863630,4.91663563,2627.6,2627.5,0.00478902]
[1724321863930,7.40669012,2627.6,2627.5,0.00478902]
[1724321864830,4.91663563,2627.6,2627.5,0.00478902]
[1724321865027,4.91663398,2627.6,2627.5,0.00478902]
[1724321865218,7.40668847,2627.6,2627.5,0.00478902]
[1724321865824,15.61448847,2627.6,2627.5,0.00478902]
[1724321866227,13.12443398,2627.6,2627.5,0.00478902]
[1724321866622,8.12443398,2627.6,2627.5,0.00478902]
[1724321866827,13.12443398,2627.6,2627.5,0.00478902]
[1724321868231,15.61448847,2627.6,2627.5,0.00478902]
[1724321868529,6.80888847,2627.6,2627.5,0.00478902]
[1724321868733,10.61448847,2627.6,2627.5,0.00478902]
[1724321869523,16.71248847,2627.6,2627.5,0.00478902]
[1724321869722,16.71251162,2627.6,2627.5,0.00478902]
[1724321870530,17.66370162,2627.6,2627.5,0.00478902]
[1724321870724,17.66370162,2627.6,2627.5,1e-08]
[1724321874236,10.61451162,2627.6,2627.5,1e-08]
[1724321874429,10.6144809,2627.6,2627.5,1e-08]
[1724321875938,3.5577,2627.6,2627.5,1.47849001]
[1724321876135,3.2078,2627.6,2627.5,2.20409001]
[1724321876332,5.19809286,2627.6,2627.5,2.20409001]
[1724321879737,1.99029286,2627.6,2627.5,2.20409001]
[1724321880238,2.37076286,2627.6,2627.5,1.82360001]
[1724321880443,2.37076286,2627.6,2627.5,1.47110001]
[1724321880841,0.38047,2627.6,2627.5,1.47110001]
[1724321881033,2.37094101,2627.6,2627.5,1.47110001]
[1724321881232,1.99047101,2627.6,2627.5,1.47110001]
[1724321881432,2.49005449,2627.7,2627.6,0.38047]
[1724321881433,1.99047101,2627.7,2627.6,0.38047]
[1724321881643,1.99047101,2627.7,2627.6,0.75117]
[1724321885238,2.37093101,2627.7,2627.6,0.3707]
[1724321885641,1.99047101,2627.7,2627.6,0.75117]
[1724321887348,5.57872101,2627.8,2627.6,0.75117]
[1724321887540,5.57872101,2627.8,2627.7,1.098]
[1724321887740,5.57872101,2627.8,2627.7,1.4802]
[1724321887942,5.57905754,2627.8,2627.7,1.4802]
[1724321890244,3.58825,2627.8,2627.7,1.4802]
[1724321890550,5.57898401,2627.8,2627.7,1.4802]
[1724321891849,4.34257514,2627.8,2627.7,0.3822]
[1724321892055,6.83264116,2627.8,2627.7,0.3822]
[1724321892252,6.83264121,2627.8,2627.7,0.3822]
[1724321892649,7.21434121,2627.8,2627.7,0.3822]
[1724321894655,6.45894121,2627.8,2627.7,1.4802]
[1724321894957,5.57881591,2627.8,2627.7,1.4802]
[1724321897054,3.2078,2627.8,2627.7,1.86066]
[1724321897254,4.70117582,2627.8,2627.7,1.86066]
[1724321899757,3.2078,2627.8,2627.7,1.86066]
[1724321900757,3.5682,2627.8,2627.7,1.86066]
[1724321905563,3.94864,2627.8,2627.7,1.86066]
[1724321905765,5.55876591,2627.8,2627.7,1.098]
[1724321905963,5.91076591,2627.8,2627.7,1.098]
[1724321906758,6.29121591,2627.8,2627.7,1.098]
[1724321906954,5.91076591,2627.8,2627.7,1.47846]
[1724321907150,3.9202,2627.8,2627.7,1.47846]
[1724321908668,3.9202,2627.8,2627.7,1.098]
[1724321908864,3.9202,2627.8,2627.7,1.47846]
[1724321911061,5.4128902,2627.8,2627.7,1.47846]
[1724321911964,3.9202,2627.8,2627.7,1.47846]
[1724321913263,5.41307567,2627.8,2627.7,1.47846]
[1724321913464,5.06107567,2627.8,2627.7,1.47846]
[1724321916268,1.85327567,2627.8,2627.7,1.47846]
[1724321916570,5.06107567,2627.8,2627.7,1.47846]
[1724321918468,1.85327567,2627.8,2627.7,1.47846]
[1724321918774,4.70067567,2627.8,2627.7,1.47846]
[1724321919174,3.2078,2627.8,2627.7,1.47846]
[1724321919371,4.70142166,2627.8,2627.7,1.47846]
[1724321920361,4.70142166,2627.8,2627.7,2.42961]
[1724321920565,1.99056591,2627.9,2627.8,1.33156]
[1724321920566,0.99586561,2627.9,2627.8,1.33156]
[1724321920868,1.49362166,2628.0,2627.9,1.33151]
[1724321920869,0.99586561,2628.0,2627.9,1.33151]
[1724321921177,0.99586561,2628.1,2628.0,0.38042]
[1724321921370,0.99586561,2628.1,2628.0,3.42678268]
[1724321921572,1.00029291,2628.2,2628.1,0.3804]
[1724321921873,1.00029291,2628.2,2628.1,5.18214494]
[1724321922065,1.00029291,2628.2,2628.1,7.58343437]
[1724321922066,0.0044273,2628.2,2628.1,7.58343437]
[1724321922267,0.0044273,2628.2,2628.1,6.08761799]
[1724321922465,0.0044273,2628.2,2628.1,7.08418321]
[1724321923276,0.0044273,2628.2,2628.1,10.18176522]
[1724321923780,0.0044273,2628.2,2628.1,5.18176522]
[1724321924277,0.0044273,2628.2,2628.1,4.1852]
[1724321924481,0.0044273,2628.2,2628.1,5.18176522]
[1724321925572,0.0044273,2628.2,2628.1,4.1852]
[1724321927277,0.0044273,2628.2,2628.1,5.13621]
[1724321927675,0.0044273,2628.2,2628.1,10.13621]
[1724321927991,4.20366561,2628.6,2628.5,0.38034]
[1724321928369,1.065,2628.8,2628.5,4.75487]
[1724321928370,0.99586561,2628.8,2628.5,4.75487]
[1724321928571,1.34496561,2628.9,2628.8,0.3803]
[1724321928774,0.3491,2628.9,2628.8,1.4783]
[1724321928974,0.3491,2628.9,2628.8,1.53049325]
[1724321928975,1.3496962,2628.9,2628.8,1.53049325]
[1724321929278,0.35383059,2628.9,2628.8,1.53049325]
[1724321932071,0.35383059,2628.9,2628.8,1.90099325]
[1724321933900,0.00473059,2628.9,2628.8,1.90099325]
[1724321935081,0.00473059,2628.9,2628.8,0.43249325]
[1724321935275,0.00473059,2628.9,2628.8,1.5826865]
[1724321939590,0.00473059,2628.9,2628.8,5.3866865]
[1724321939783,0.00473059,2628.9,2628.8,6.3374465]
[1724321940189,0.00473059,2628.9,2628.8,12.2882065]
[1724321940881,0.00473059,2628.9,2628.8,18.8882065]
[1724321942888,0.00473059,2628.9,2628.8,11.9866865]
[1724321943090,0.00473059,2628.9,2628.8,12.9374465]
[1724321943983,0.00473059,2628.9,2628.8,17.9374465]
[1724321944890,0.00473059,2628.9,2628.8,11.3374465]
[1724321945691,0.3854,2629.5,2629.4,0.38021]
[1724321945883,0.3854,2629.5,2629.4,1.47821]
[1724321946283,0.3854,2629.5,2629.4,1.5825965]
[1724321946785,0.38840421,2629.5,2629.4,1.20626546]
[1724321946992,0.38840421,2629.5,2629.4,1.58647546]
[1724321948898,0.38840421,2629.5,2629.4,1.20626546]
[1724321949199,0.38840421,2629.5,2629.4,1.58647546]
[1724321949899,0.73710421,2629.5,2629.4,1.58647546]
[1724321950606,0.73710421,2629.5,2629.4,1.20626546]
[1724321950985,0.73710421,2629.5,2629.4,1.58647546]
[1724321951296,0.73710421,2629.5,2629.4,1.20626546]
[1724321951596,6.01850421,2629.5,2629.4,0.10826546]
[1724321953290,10.63830421,2629.5,2628.4,3.2078]
[1724321953504,10.63830421,2629.5,2628.8,1.098]
[1724321953505,0.38028,2629.0,2628.8,1.098]
[1724321953794,4.3058,2629.1,2628.8,1.4783]
[1724321953795,0.7431,2628.9,2628.8,1.4783]
[1724321954199,0.7431,2628.9,2628.8,1.48136176]
[1724321955301,0.385,2628.9,2628.8,5.28536176]
[1724321955498,3.5737,2629.2,2628.8,4.90506176]
[1724321955698,0.385,2629.1,2629.0,0.38027]
[1724321955899,0.385,2629.1,2629.0,1.47827]
[1724321956888,0.385,2629.1,2629.0,0.38027]
[1724321957088,0.385,2629.1,2629.0,1.47827]
[1724321960797,0.76526,2629.1,2629.0,1.47827]
[1724321963901,0.385,2629.1,2629.0,1.47827]
[1724321964299,0.76526,2629.1,2629.0,1.47827]
[1724321965004,0.99092654,2629.3,2629.2,0.38024]
[1724321965209,5.08163166,2629.4,2629.3,0.38023]
[1724321965210,3.2078,2629.4,2629.3,0.38023]
[1724321965608,3.2078,2629.4,2629.3,0.74983]
[1724321966203,0.38770421,2629.5,2629.4,0.38021]
[1724321966403,0.00300421,2629.5,2629.4,5.66141]
[1724321970203,0.00300421,2629.5,2629.4,12.26141]
[1724321975413,0.00300421,2629.5,2629.4,4.56341]
[1724321975710,0.00300421,2629.5,2629.4,5.66141]
[1724321975918,0.00300421,2629.5,2629.4,1.85821]
[1724321976418,0.00300421,2629.5,2629.4,5.66141]
[1724321977814,0.00300421,2629.5,2629.4,6.61195]
[1724321978015,0.00300421,2629.5,2629.4,5.66141]
[1724321978207,0.00300421,2629.5,2629.4,6.61195]
[1724321978411,0.00300421,2629.5,2629.4,7.60851522]
[1724321978717,0.00300421,2629.5,2629.4,6.61195]
[1724321978928,0.00300421,2629.5,2629.4,7.60851522]
[1724321979817,0.00300421,2629.5,2629.4,9.50981715]
[1724321980410,0.00300421,2629.5,2629.4,9.50711584]
[1724321980608,0.00300421,2629.5,2629.4,7.60581391]
[1724321980819,0.00300421,2629.5,2629.4,9.50711554]
[1724321981023,0.00300421,2629.5,2629.4,7.60581391]
[1724321981217,0.00300421,2629.5,2629.4,9.50714915]
[1724321981609,0.00300421,2629.5,2629.4,7.60581391]
[1724321982516,0.00300421,2629.5,2629.4,9.50713763]
[1724321982716,0.00300421,2629.5,2629.4,9.50716716]
[1724321983916,0.00300421,2629.5,2629.4,8.51330325]
[1724321984125,0.00300421,2629.5,2629.4,9.50719448]
[1724321984423,3.5728,2630.0,2629.9,0.38014]
[1724321984625,3.2078,2630.0,2629.9,1.47814]
[1724321985514,3.21131,2630.0,2629.9,1.47814]
[1724321985924,0.00351,2630.0,2629.9,8.48834]
[1724321986327,0.99092654,2630.5,2630.3,0.38008]
[1724321986530,4.56372654,2630.6,2630.3,1.47808]
[1724321986831,0.3727,2630.4,2630.3,0.38008]
[1724321987325,0.37748677,2630.4,2629.9,12.7168]
[1724321987529,0.37748677,2630.4,2630.2,0.38009]
[1724321987730,0.37748677,2630.4,2630.3,1.098]
[1724321988420,0.75755677,2630.4,2630.3,1.098]
[1724321988622,1.12935677,2630.4,2630.3,1.098]
[1724321990729,0.74928677,2630.4,2630.3,1.098]
[1724321991116,0.74928677,2630.4,2630.3,1.47808]
[1724321991530,0.37748677,2630.4,2630.3,1.47808]
[1724321991823,0.00478677,2630.4,2630.3,1.47808]
[1724321992029,0.00478677,2630.4,2630.3,2.19098]
[1724321992221,0.00478677,2630.4,2630.3,2.56558]
[1724321992418,0.00478677,2630.4,2630.3,1.46758]
[1724321992625,0.00478677,2630.4,2630.3,2.56558]
[1724321994527,0.00478677,2630.4,2630.3,1.46758]
[1724321997532,0.00478677,2630.4,2630.3,5.62559]
[1724321998035,0.00478677,2630.4,2630.3,1.10578]
[1724322001725,0.00478677,2630.4,2630.3,5.85759]
[1724322002128,0.3763,2630.8,2630.7,0.38002]
[1724322003131,0.38104109,2630.8,2630.7,0.3841208]
[1724322003637,0.75314109,2630.8,2630.7,0.0041008]
[1724322004832,0.75314109,2630.8,2630.7,0.3841208]
[1724322005038,0.75314109,2630.8,2630.7,0.0041008]
[1724322005228,1.13315109,2630.8,2630.7,0.0041008]
[1724322005429,0.3801,2630.2,2629.9,8.91093]
[1724322005740,0.95016,2630.5,2629.9,8.91093]
[1724322005741,3.2078,2630.7,2630.1,2.628]
[1724322005935,0.3787,2630.4,2630.3,0.38008]
[1724322006443,0.3787,2630.4,2630.3,0.38426385]
[1724322007828,3.2078,2630.7,2630.6,0.38004]
[1724322008033,3.5865,2630.7,2630.6,0.38004]
[1724322009939,3.5865,2630.7,2630.6,0.73724]
[1724322013646,3.2078,2630.7,2630.6,0.73724]
[1724322013946,0.00474109,2630.8,2630.7,0.38002]
[1724322014139,0.00474109,2630.8,2630.7,3.38192]
[1724322014448,0.00474109,2630.8,2630.7,9.98192]
[1724322015033,0.00474109,2630.8,2630.7,3.38192]
[1724322016456,0.00474109,2630.8,2630.7,1.84892]
[1724322018153,0.00474109,2630.8,2630.7,0.75392]
[1724322018331,0.00474109,2630.8,2630.7,1.84892]
[1724322022932,0.00474109,2630.8,2630.5,0.3697]
[1724322023144,0.00474109,2630.8,2630.7,1.095]
[1724322023145,0.38475109,2630.8,2630.7,1.095]
[1724322023936,0.00474109,2630.8,2630.7,1.095]
[1724322024237,0.38744109,2630.8,2630.7,1.095]
[1724322025744,0.76745109,2630.8,2630.4,1.82071645]
[1724322025941,0.3807,2630.7,2630.5,0.38005]
[1724322026147,0.3807,2630.7,2630.6,1.47504]
[1724322030544,0.3807,2630.7,2630.6,2.4688843]
[1724322030849,0.38004,2630.6,2630.5,1.095]
[1724322031245,9.18164,2630.6,2630.4,1.095]
[1724322031459,1.33025,2630.4,2630.3,0.00418385]
[1724322031658,2.37151912,2630.4,2630.3,1.09918385]
[1724322031858,11.93031912,2630.4,2630.3,1.09918385]
[1724322032151,12.28381912,2630.4,2630.3,1.09918385]
[1724322033054,12.28381912,2630.4,2630.3,0.00418385]
[1724322033253,0.3801,2630.2,2630.1,1.095]
[1724322033439,5.57908988,2630.2,2630.1,1.095]
[1724322033764,9.38148988,2630.2,2630.1,1.095]
[1724322034144,9.38148988,2630.2,2630.1,1.09845367]
[1724322034542,9.38148988,2630.2,2630.1,0.00345367]
[1724322034543,15.33173988,2630.2,2630.1,0.00345367]
[1724322034745,13.72083975,2630.2,2630.1,0.00345367]
[1724322034947,17.16114424,2630.2,2630.1,0.00345367]
[1724322035142,14.67108975,2630.2,2630.1,0.00345367]
[1724322035451,0.38015,2629.8,2629.7,0.00570657]
[1724322035657,3.58795,2629.8,2629.7,0.00570657]
[1724322035842,3.58795,2629.8,2629.3,5.321]
[1724322035843,0.3802,2629.5,2629.3,5.321]
[1724322036046,0.3726,2629.4,2629.3,0.38023]
[1724322036248,0.3726,2629.4,2629.3,0.00405598]
[1724322036249,1.73280773,2629.4,2629.3,0.00405598]
[1724322036449,4.92171,2629.4,2629.3,0.00405598]
[1724322036656,5.91621773,2629.4,2629.3,0.00405598]
[1724322037655,4.92171,2629.4,2629.3,0.00405598]
[1724322037844,4.5415,2629.4,2629.3,0.00405598]
[1724322038445,4.8926,2629.4,2629.3,0.00405598]
[1724322039043,5.27281,2629.4,2629.3,0.00405598]
[1724322040354,4.8926,2629.4,2629.3,0.00405598]
[1724322040549,4.8926,2629.4,2629.3,0.38428598]
[1724322040749,4.8926,2629.4,2629.3,0.00405598]
[1724322041956,5.27281,2629.4,2629.3,0.00405598]
[1724322042860,4.8926,2629.4,2629.3,0.38428598]
[1724322044455,3.2078,2629.5,2629.4,0.38021]
[1724322044765,3.2078,2629.5,2629.4,0.73271]
[1724322044962,3.2078,2629.5,2629.4,4.90201]
[1724322045150,3.2078,2629.5,2629.4,5.85255]
[1724322045651,0.37626959,2629.8,2629.7,0.38017]
[1724322046554,0.00566959,2629.8,2629.7,0.38017]
[1724322046861,0.00566959,2629.8,2629.7,0.74967]
[1724322049653,0.38582959,2629.8,2629.6,3.00918]
[1724322049851,0.00566959,2629.8,2629.7,0.38017]
[1724322050056,3.80806959,2629.8,2629.7,0.38017]
[1724322052352,3.80806959,2629.8,2629.4,0.3525]
[1724322052655,0.38019,2629.6,2629.4,0.3525]
[1724322053363,0.38019,2629.6,2629.4,0.73271]
[1724322053558,0.73788,2629.7,2629.4,0.73271]
[1724322053862,0.00566959,2629.8,2629.6,0.38018]
[1724322054061,3.80806959,2629.8,2629.6,0.38018]
[1724322054358,0.00566959,2629.8,2629.7,0.38017]
[1724322058972,0.38582959,2629.8,2629.6,0.38017]
[1724322059464,0.38582959,2629.8,2629.4,0.3525]
[1724322059465,0.00566959,2629.8,2629.4,0.3525]
[1724322059661,0.38019,2629.6,2629.4,0.7327]
[1724322059863,0.38019,2629.6,2629.4,1.1009]
[1724322060262,0.75288,2629.7,2629.4,1.1009]
[1724322060567,0.38018,2629.6,2629.4,1.1009]
[1724322060965,0.38018,2629.6,2629.4,0.7207]
[1724322061173,0.38018,2629.6,2629.4,1.10091]
[1724322062478,3.96068,2629.7,2629.5,0.38019]
[1724322062668,3.5805,2629.7,2629.6,0.38018]
[1724322063068,7.3829,2629.7,2629.5,0.38019]
[1724322063271,3.5805,2629.7,2629.5,0.38019]
[1724322063791,3.96067,2629.7,2629.5,0.38019]
[1724322064371,3.5805,2629.7,2629.5,0.38019]
[1724322064569,3.5805,2629.7,2629.6,0.38018]
[1724322064767,3.5805,2629.7,2629.5,0.38019]
[1724322065076,3.96067,2629.7,2629.5,0.38019]
[1724322065679,3.96067,2629.7,2629.4,1.1009]
[1724322065680,0.38018,2629.6,2629.4,1.1009]
[1724322065980,3.96068,2629.7,2629.5,0.3802]
[1724322066179,0.38019,2629.6,2629.4,1.10091]
[1724322066377,0.3802,2629.5,2629.4,0.7207]
[1724322066577,0.38021,2629.4,2629.3,0.00405598]
[1724322066782,4.53094,2629.7,2629.3,0.00405598]
[1724322066977,0.3802,2629.6,2629.4,0.38021]
[1724322067174,0.3802,2629.5,2629.3,0.38427598]
[1724322068180,3.5805,2629.7,2629.3,0.00405598]
[1724322068380,3.5805,2629.7,2629.6,0.38018]
[1724322068772,3.2078,2629.7,2629.6,0.38018]
[1724322069076,3.2078,2629.7,2629.6,5.13305]
[1724322069584,3.2078,2629.7,2629.6,4.55388]
[1724322070281,3.2078,2629.7,2629.6,0.75148]
[1724322072184,0.38582959,2629.8,2629.6,0.75148]
[1724322072680,0.00566959,2629.8,2629.7,0.38017]
[1724322074382,0.38582959,2629.8,2629.6,0.75147]
[1724322074583,0.38582959,2629.8,2629.7,0.38017]
[1724322074775,0.00566959,2629.8,2629.7,0.38017]
[1724322076482,1.00017732,2629.8,2629.7,1.47517]
[1724322077987,0.00566959,2629.8,2629.7,1.47517]
[1724322078485,1.49743118,2629.8,2629.7,1.47517]
[1724322079592,1.87758118,2629.8,2629.7,1.47517]
[1724322079988,1.49743118,2629.8,2629.7,1.47517]
[1724322081093,1.0009271,2629.8,2629.7,2.4256]
[1724322081486,1.0009271,2629.8,2629.7,6.228]
[1724322081682,0.00566959,2629.8,2629.7,7.2218443]
[1724322082083,0.00566959,2629.8,2629.7,9.12313879]
[1724322082279,0.00566959,2629.8,2629.7,6.2714143]
[1724322082485,0.00566959,2629.8,2629.7,2.4690143]
[1724322082795,0.00566959,2629.8,2629.7,1.47517]
[1724322082987,1.3790271,2629.8,2629.7,1.47517]
[1724322083380,1.0009271,2629.8,2629.7,1.47517]
[1724322083586,1.0009271,2629.8,2629.7,2.4690143]
[1724322083587,0.00566959,2629.8,2629.7,2.4690143]
[1724322086993,0.00566959,2629.8,2629.7,4.37036384]
[1724322087495,1.0009271,2629.8,2629.7,2.4690143]
[1724322087701,1.0009271,2629.8,2629.7,4.37038398]
[1724322088401,0.00566959,2629.8,2629.7,4.37038398]
[1724322088603,1.0009271,2629.8,2629.7,4.37038302]
[1724322088902,1.0009271,2629.8,2629.7,4.37041116]
[1724322089494,1.0009271,2629.8,2629.7,3.37656686]
[1724322089696,1.0009271,2629.8,2629.7,4.87238324]
[1724322091400,1.0009271,2629.8,2629.7,3.39721324]
[1724322091600,0.38582959,2629.8,2629.7,1.095]
[1724322092393,2.3749256,2629.8,2629.7,1.095]
[1724322092699,0.38582959,2629.8,2629.7,1.095]
[1724322093398,2.3749256,2629.8,2629.7,1.095]
[1724322093603,0.38582959,2629.8,2629.7,1.095]
[1724322094597,0.38582959,2629.8,2629.7,1.47517]
[1724322095395,2.3749256,2629.8,2629.7,1.095]
[1724322095614,5.5827256,2629.8,2629.7,1.095]
[1724322095906,2.3749256,2629.8,2629.7,1.47517]
[1724322096497,0.38582959,2629.8,2629.7,1.47517]
[1724322096904,0.00566959,2629.8,2629.7,1.47517]
[1724322097105,3.21346959,2629.8,2629.6,2.47194713]
[1724322097301,1.49391081,2629.7,2629.6,2.47194713]
[1724322097810,1.49391081,2629.7,2629.6,1.47518]
[1724322098509,1.49391081,2629.7,2629.6,2.47194713]
[1724322099910,1.49391081,2629.7,2629.6,4.37341802]
[1724322100309,0.00566959,2629.8,2629.7,0.38017]
[1724322100508,1.49965605,2629.8,2629.7,1.47517]
[1724322101013,0.00566959,2629.8,2629.7,1.47517]
[1724322101712,1.49965281,2629.8,2629.7,1.47517]
[1724322102109,0.00566959,2629.8,2629.7,1.47517]
[1724322103510,1.9947656,2629.8,2629.7,1.47517]
[1724322104718,0.00566959,2629.8,2629.7,1.47517]
[1724322105020,1.9947656,2629.8,2629.7,1.47517]
[1724322105911,0.00566959,2629.8,2629.7,1.47517]
[1724322106409,1.9947656,2629.8,2629.7,1.47517]
[1724322109416,5.5827256,2629.8,2629.7,1.47517]
[1724322110029,2.3749256,2629.8,2629.7,1.47517]
[1724322110420,2.3749256,2629.8,2629.7,1.095]
[1724322110624,2.3749256,2629.8,2629.7,0.38017]
[1724322110817,0.38017,2629.7,2629.6,1.47517]
[1724322111013,0.3802,2629.5,2629.4,2.47197713]
[1724322111213,0.3802,2629.5,2629.4,1.47521]
[1724322111417,3.588,2629.5,2629.4,1.47521]
[1724322111727,3.9421,2629.5,2629.4,1.47521]
[1724322112225,3.9421,2629.5,2629.3,2.47604311]
[1724322112526,3.9421,2629.5,2629.3,1.47927598]
[1724322112527,5.93119601,2629.5,2629.3,1.47927598]
[1724322112725,3.46430601,2629.4,2629.3,0.00405598]
[1724322113224,7.26750601,2629.4,2629.3,0.00405598]
[1724322115111,4.18341,2629.4,2629.3,1.09905598]
[1724322115318,4.18341,2629.4,2629.3,1.47928598]
[1724322115524,5.67670148,2629.4,2629.3,1.47928598]
[1724322116330,6.17250601,2629.4,2629.3,0.00405598]
[1724322116523,13.00070535,2629.4,2629.3,0.00405598]
[1724322116824,0.3803,2628.9,2628.6,1.47532]
[1724322117125,1.49256905,2628.7,2628.6,1.095]
[1724322117320,2.63457905,2628.8,2628.6,1.095]
[1724322117515,4.70036905,2628.7,2628.6,1.095]
[1724322117720,4.70036905,2628.7,2628.6,1.48021019]
[1724322117721,4.70505023,2628.7,2628.6,1.48021019]
[1724322117920,3.21248118,2628.7,2628.6,1.09988019]
[1724322118120,0.99882353,2628.7,2628.6,1.48021019]
[1724322118625,0.00468118,2628.7,2628.6,1.48021019]
[1724322121222,0.00468118,2628.7,2628.6,1.09988019]
[1724322121422,0.38499118,2628.7,2628.6,1.09988019]
[1724322121714,6.77656023,2628.7,2628.6,0.00488019]
[1724322122328,6.27634315,2628.7,2628.6,0.00488019]
[1724322123726,5.28399118,2628.7,2628.6,0.00488019]
[1724322123929,6.27634315,2628.7,2628.6,0.00488019]
[1724322124231,0.00468118,2628.7,2628.6,1.48021019]
[1724322129631,0.00468118,2628.7,2628.6,6.23504019]
[1724322130035,0.00468118,2628.7,2628.6,6.42180638]
[1724322130237,0.00468118,2628.7,2628.6,11.42180638]
[1724322130439,0.00468118,2628.7,2628.6,5.47097638]
[1724322130935,0.00468118,2628.7,2628.6,1.48021019]
[1724322131734,0.00468118,2628.7,2628.6,8.68501587]
[1724322132521,0.00468118,2628.7,2628.6,15.28501587]
[1724322134725,0.00468118,2628.7,2628.6,15.74238037]
[1724322143245,0.00468118,2628.7,2628.6,16.69321037]
[1724322144939,0.378,2629.2,2629.1,0.38026]
[1724322145951,0.38094074,2629.2,2629.1,0.38026]
[1724322147247,0.00294074,2629.2,2629.1,5.13411]
[1724322148144,0.00294074,2629.2,2629.1,4.18346]
[1724322148459,0.00294074,2629.2,2629.1,5.13411]
[1724322148751,0.00294074,2629.2,2629.1,4.18346]
[1724322149245,0.00294074,2629.2,2629.1,8.80803011]
[1724322151045,0.00294074,2629.2,2629.1,7.85738011]
[1724322154052,0.00294074,2629.2,2629.0,0.38027]
[1724322154053,0.38319074,2629.2,2629.0,0.38027]
[1724322154242,0.3631,2629.1,2629.0,0.38027]
[1724322154744,0.3631,2629.1,2629.0,1.47527]
[1724322157355,0.00294074,2629.2,2629.1,0.38026]
[1724322157655,0.00294074,2629.2,2629.1,1.83336]
[1724322159749,0.00294074,2629.2,2629.1,2.30649518]
[1724322160356,0.00294074,2629.2,2629.1,3.25714518]
[1724322160655,0.00294074,2629.2,2629.1,1.83336]
[1724322160858,0.00294074,2629.2,2629.1,1.47526]
[1724322161355,0.38026,2629.1,2628.9,1.37704713]
[1724322161547,1.8268,2629.0,2628.7,2.09176713]
[1724322161757,2.20708,2629.0,2628.7,1.47531]
[1724322162051,0.3723,2628.9,2628.7,1.47531]
[1724322162455,0.3723,2628.9,2628.8,0.3803]
[1724322165452,0.3723,2628.9,2628.6,1.00164732]
[1724322165453,0.3803,2628.8,2628.6,1.00164732]
[1724322165763,1.47532,2628.7,2628.6,0.00488019]